bitfinex-derivatives/quotes_SOLF0:USTF0_20250413
["timestamp","ask_amount","ask_price","bid_price","bid_amount"]
[1744568770610,7.6168,131.33,131.3,7.66729504]
[1744568770817,0.05421231,131.33,131.3,0.04939504]
[1744568771211,0.05421231,131.33,131.3,7.66729504]
[1744568772318,7.67101231,131.33,131.3,0.04939504]
[1744568772517,0.05421231,131.33,131.3,0.04939504]
[1744568773118,7.6175,131.32,131.3,0.04939504]
[1744568775720,0.05421231,131.33,131.3,0.04939504]
[1744568776121,7.67111231,131.33,131.3,0.04939504]
[1744568776718,7.67111231,131.33,131.3,7.66719504]
[1744568777115,0.05421231,131.33,131.3,0.04939504]
[1744568777321,0.05421231,131.33,131.31,11.9313802]
[1744568777620,0.05421231,131.33,131.32,7.6171]
[1744568778121,47.4686,131.38,131.35,7.6149]
[1744568778320,45.4339,131.38,131.35,7.6149]
[1744568779415,45.49126365,131.38,131.35,7.66818547]
[1744568779615,45.49126365,131.38,131.36,7.6147]
[1744568780216,0.05736365,131.38,131.37,7.6142]
[1744568780522,37.82,131.44,131.35,0.05328547]
[1744568780718,7.611,131.43,131.36,13.62755088]
[1744568780923,37.82,131.44,131.38,13.62755088]
[1744568781123,37.82,131.44,131.41,7.6114]
[1744568781722,45.47384449,131.44,131.41,7.66570112]
[1744568781922,37.86354449,131.44,131.42,7.6112]
[1744568782224,45.47364449,131.44,131.41,0.05430112]
[1744568782526,7.65364449,131.44,131.41,0.05430112]
[1744568782816,7.65364449,131.44,131.41,7.66590112]
[1744568783814,0.04354449,131.44,131.41,0.05430112]
[1744568785521,0.04354449,131.44,131.42,7.6113]
[1744568788125,0.04354449,131.44,131.43,7.6107]
[1744568788332,0.04354449,131.44,131.41,0.05430112]
[1744568792627,37.8,131.51,131.42,16.81596153]
[1744568792929,37.8,131.54,131.46,13.62755088]
[1744568793229,37.8,131.54,131.46,51.42755088]
[1744568793722,37.8,131.54,131.49,0.05804897]
[1744568797331,4.0115,131.55,131.49,0.05804897]
[1744568797733,2.1332,131.56,131.5,13.62755088]
[1744568797931,13.62755088,131.58,131.48,13.62755088]
[1744568798129,15.56025088,131.58,131.52,0.05084352]
[1744568798832,37.78,131.57,131.52,0.05084352]
[1744568804039,13.62755088,131.56,131.52,0.05084352]
[1744568804534,4.0006,131.55,131.52,0.05084352]
[1744568805138,8.70186668,131.54,131.52,0.05084352]
[1744568806434,1.9379,131.55,131.52,0.05084352]
[1744568806640,8.70186668,131.56,131.52,0.05084352]
[1744568809347,8.70186668,131.54,131.52,0.05084352]
[1744568811850,37.72,131.53,131.46,60.99624668]
[1744568812043,8.70186668,131.51,131.46,60.99624668]
[1744568812243,8.70186668,131.51,131.46,23.19624668]
[1744568813050,0.05084352,131.5,131.47,0.05456126]
[1744568815353,0.05084352,131.5,131.47,37.77456126]
[1744568819652,0.05084352,131.5,131.48,13.60123681]
[1744568819859,37.72,131.56,131.48,15.63993681]
[1744568820058,37.72,131.56,131.49,2.1225]
[1744568820258,37.72,131.56,131.49,4.2293]
[1744568820858,37.72,131.56,131.51,0.05121389]
[1744568823361,51.32123681,131.56,131.51,0.05121389]
[1744568823754,13.60123681,131.54,131.51,0.05121389]
[1744568824155,1.9546,131.53,131.51,0.05121389]
[1744568827764,51.32123681,131.56,131.51,0.05121389]
[1744568829768,13.60123681,131.54,131.51,0.05121389]
[1744568830065,13.60123681,131.52,131.46,14.49438]
[1744568830258,13.60123681,131.49,131.46,14.49438]
[1744568830457,37.72,131.48,131.46,14.49438]
[1744568831055,37.77102117,131.48,131.46,14.54925632]
[1744568831367,0.05102117,131.48,131.46,14.54925632]
[1744568832169,0.05102117,131.48,131.46,28.15049313]
[1744568832864,0.05102117,131.48,131.47,3.20525978]
[1744568833169,0.05102117,131.48,131.47,11.9070133]
[1744568833470,8.70175352,131.54,131.47,11.9070133]
[1744568833669,602.38,131.55,131.5,8.70175352]
[1744568833870,46.42175352,131.56,131.5,8.70175352]
[1744568834670,46.42175352,131.56,131.52,0.05113814]
[1744568835170,37.72,131.56,131.52,0.05113814]
[1744568840377,51.31211416,131.56,131.52,0.05113814]
[1744568840574,6.2772,131.55,131.52,0.05113814]
[1744568848276,37.72,131.56,131.52,0.05113814]
[1744568857185,46.41926146,131.56,131.52,0.05113814]
[1744568860784,8.69926146,131.54,131.52,0.05113814]
[1744568861189,8.69926146,131.54,131.47,8.69926146]
[1744568861488,8.69926146,131.52,131.48,3.21113254]
[1744568861684,8.69926146,131.52,131.47,8.69926146]
[1744568861885,8.69926146,131.52,131.48,3.21110253]
[1744568862085,8.69926146,131.53,131.47,8.69926146]
[1744568862284,8.69926146,131.53,131.48,3.21140513]
[1744568862487,0.05133086,131.51,131.49,0.05701328]
[1744568863491,0.05133086,131.51,131.49,8.75627474]
[1744568869397,0.05133086,131.51,131.49,0.05701328]
[1744568881813,37.58,131.5,131.46,14.49438]
[1744568882011,8.69926146,131.49,131.46,14.49438]
[1744568883014,8.69926146,131.49,131.46,14.55196892]
[1744568883814,8.69926146,131.47,131.46,14.55196892]
[1744568886516,0.05403886,131.48,131.46,14.55196892]
[1744568888817,8.69926146,131.47,131.46,14.55196892]
[1744568889715,8.69926146,131.47,131.4,6.0396]
[1744568889918,46.27926146,131.46,131.41,3.21039848]
[1744568890117,37.58,131.45,131.4,6.0396]
[1744568890418,37.58,131.45,131.41,3.21039287]
[1744568890617,37.58,131.45,131.4,6.0396]
[1744568890823,0.0517972,131.44,131.42,0.05527803]
[1744568895230,7.6107,131.43,131.42,0.05527803]
[1744568896232,7.6621972,131.44,131.42,0.05527803]
[1744568896425,0.0517972,131.44,131.42,0.05527803]
[1744568896830,7.6621972,131.44,131.42,7.66647803]
[1744568897331,7.6621972,131.44,131.42,0.05527803]
[1744568899033,7.6621972,131.44,131.42,7.66657803]
[1744568899533,7.6621972,131.44,131.42,0.05527803]
[1744568899929,0.0517972,131.44,131.42,0.05527803]
[1744568900133,0.0517972,131.44,131.43,7.6107]
[1744568901034,37.48,131.48,131.43,8.69926146]
[1744568901234,37.48,131.48,131.45,8.69926146]
[1744568901434,7.6081,131.48,131.45,8.69926146]
[1744568901730,8.69926146,131.5,131.46,7.6089]
[1744568902134,0.05133112,131.49,131.47,0.05863241]
[1744568902337,7.65883112,131.49,131.47,0.05863241]
[1744568902536,0.05133112,131.49,131.47,0.05863241]
[1744568904141,7.6078,131.48,131.47,0.05863241]
[1744568906743,16.30706146,131.48,131.47,0.05863241]
[1744568907943,8.69926146,131.48,131.4,8.69926146]
[1744568908141,8.69926146,131.42,131.37,9.606]
[1744568908349,7.6121,131.41,131.38,3.20840807]
[1744568908547,8.69926146,131.42,131.37,9.606]
[1744568908747,8.69926146,131.4,131.34,21.60735549]
[1744568908948,7.6139,131.38,131.35,3.21009468]
[1744568909151,8.69926146,131.38,131.36,3.26346241]
[1744568909349,8.75190519,131.38,131.36,0.05336773]
[1744568909648,7.6142,131.37,131.36,0.05336773]
[1744568912850,7.66654373,131.38,131.36,0.05336773]
[1744568914154,0.05264373,131.38,131.36,0.05336773]
[1744568915753,0.05264373,131.38,131.36,7.66786773]
[1744568916749,0.05264373,131.38,131.37,7.6142]
[1744568916952,602.86,131.61,131.37,1004.36]
[1744568917151,114.35123003,131.56,131.51,7.6056]
[1744568917452,106.74763003,131.56,131.52,13.63054179]
[1744568917852,106.74763003,131.56,131.54,13.63054179]
[1744568918152,222.3908959,131.59,131.55,37.5]
[1744568918353,222.3908959,131.59,131.57,13.63054179]
[1744568918853,159.79511704,131.59,131.58,7.602]
[1744568919146,138.18011704,131.59,131.58,7.602]
[1744568919453,8.86e-06,131.59,131.58,18.39009263]
[1744568919651,8.86e-06,131.59,131.58,52.682]
[1744568920351,0.05681395,131.6,131.59,7.6014]
[1744568920550,0.05681395,131.6,131.59,21.23194179]
[1744568920853,37.48,131.68,131.59,13.63054179]
[1744568921153,37.48,131.68,131.57,37.48]
[1744568921753,7.5984,131.65,131.6,7.6008]
[1744568922151,7.5984,131.65,131.61,0.05540547]
[1744568924253,7.5987,131.64,131.61,0.05540547]
[1744568924454,37.46,131.64,131.61,0.05540547]
[1744568925056,37.36,131.67,131.61,0.05540547]
[1744568925258,37.36,131.67,131.55,21.71734344]
[1744568925457,7.598,131.65,131.63,0.05855579]
[1744568925756,7.598,131.65,131.6,7.6006]
[1744568925957,7.598,131.65,131.63,0.04850834]
[1744568926157,7.5976,131.66,131.63,0.04850834]
[1744568926357,37.36,131.67,131.63,0.04850834]
[1744568926548,44.9573,131.67,131.63,0.04850834]
[1744568926752,37.36,131.67,131.63,0.04850834]
[1744568927258,7.5975,131.66,131.63,0.04850834]
[1744568927460,2.0854,131.66,131.63,0.04850834]
[1744568928859,9.6832,131.66,131.63,0.04850834]
[1744568929059,37.34,131.7,131.63,0.04850834]
[1744568929354,44.9353,131.7,131.65,7.5975]
[1744568929558,37.34,131.7,131.65,0.05231105]
[1744568930954,1.9948,131.73,131.66,37.32]
[1744568931261,7.5915,131.77,131.72,7.5939]
[1744568931456,63.21164344,131.79,131.72,7.5939]
[1744568931958,63.21164344,131.79,131.74,0.054518]
[1744568932360,63.21164344,131.79,131.66,37.32]
[1744568932754,21.71734344,131.76,131.63,37.32]
[1744568933058,21.71734344,131.73,131.6,37.32]
[1744568933256,2.1177,131.72,131.6,37.32]
[1744568933561,0.05017105,131.67,131.65,0.05589936]
[1744568933864,7.5974,131.66,131.65,0.05589936]
[1744568935665,7.5988,131.64,131.6,37.32]
[1744568936165,37.32,131.67,131.6,7.6005]
[1744568936166,7.5982,131.65,131.6,7.6005]
[1744568936460,37.32,131.67,131.6,7.6005]
[1744568936662,7.5986,131.64,131.62,0.04975795]
[1744568937765,0.0527188,131.65,131.62,0.04975795]
[1744568938157,0.0527188,131.65,131.62,7.64925795]
[1744568938565,0.0527188,131.65,131.62,0.04975795]
[1744568938863,7.599,131.64,131.62,0.04975795]
[1744568939160,7.51532092,131.64,131.62,0.04975795]
[1744568939361,7.5991,131.63,131.62,0.04975795]
[1744568939563,0.0527188,131.65,131.62,0.04975795]
[1744568940367,7.5986,131.64,131.62,0.04975795]
[1744568940564,0.0527188,131.65,131.62,0.04975795]
[1744568941062,39.4377,131.72,131.62,44.96975795]
[1744568941263,2.0849,131.74,131.67,21.71734344]
[1744568941462,1.9862,131.75,131.68,37.32]
[1744568942065,7.593,131.74,131.7,7.595]
[1744568942261,0.0506064,131.73,131.7,0.05010037]
[1744568942961,7.6442064,131.73,131.7,0.05010037]
[1744568943161,0.0506064,131.73,131.7,0.05010037]
[1744568943470,7.5943,131.72,131.7,0.05010037]
[1744568943768,0.0506064,131.73,131.7,0.05010037]
[1744568944068,7.5943,131.72,131.7,0.05010037]
[1744568944264,0.0506064,131.73,131.7,0.05010037]
[1744568944669,7.5945,131.71,131.7,0.05010037]
[1744568944971,0.0506064,131.73,131.7,0.05010037]
[1744568945168,0.0506064,131.73,131.72,7.5939]
[1744568946070,0.0093064,131.73,131.72,15.1939]
[1744568946270,4.1042,131.81,131.75,7.5919]
[1744568946572,7.5902,131.79,131.75,7.5919]
[1744568946760,4.1042,131.81,131.75,7.5919]
[1744568947270,7.5902,131.79,131.75,7.5919]
[1744568947470,0.0212997,131.79,131.77,0.05400705]
[1744568948770,0.0212997,131.79,131.73,37.3]
[1744568948965,7.5914,131.77,131.73,37.3]
[1744568949470,7.5914,131.77,131.73,44.8931]
[1744568949972,0.04894246,131.76,131.74,0.05800827]
[1744568950271,41.4042,131.81,131.74,0.05800827]
[1744568950571,7.5922,131.75,131.74,0.05800827]
[1744568950963,0.05723555,131.79,131.69,43.07747614]
[1744568950964,37.3,131.77,131.69,43.07747614]
[1744568951167,37.3,131.77,131.69,35.48197614]
[1744568951571,21.71734344,131.76,131.69,35.48197614]
[1744568952067,0.05461489,131.74,131.71,0.04825563]
[1744568952272,0.05461489,131.74,131.71,41.8709472]
[1744568952470,0.05461489,131.74,131.73,7.5934]
[1744568954373,0.05461489,131.74,131.73,183.47395192]
[1744568954568,37.3,131.8,131.73,175.88055192]
[1744568954763,4.1042,131.81,131.74,37.18]
[1744568955169,1.9968,131.81,131.74,37.18]
[1744568955671,1.9968,131.81,131.76,0.0533892]
[1744568955672,0.0568855,131.79,131.76,0.0533892]
[1744568956074,0.0568855,131.79,131.77,7.5906]
[1744568957072,0.0568855,131.79,131.78,7.5905]
[1744568958978,4.0922,131.88,131.78,44.76]
[1744568959170,4.0922,131.88,131.79,21.71734344]
[1744568959981,0.02035582,131.85,131.82,0.05049276]
[1744568960474,0.02035582,131.85,131.82,37.23049276]
[1744568960675,0.02035582,131.85,131.84,7.587]
[1744568961372,6.2808,131.91,131.82,58.9478362]
[1744568961679,7.5842,131.89,131.82,58.89734344]
[1744568961878,6.2808,131.91,131.84,7.5867]
[1744568962278,7.5854,131.87,131.84,7.5867]
[1744568962579,6.2808,131.91,131.86,0.04840899]
[1744568962774,7.5853,131.87,131.86,0.04840899]
[1744568963076,6.2808,131.91,131.81,8.84566811]
[1744568963077,58.87734344,131.89,131.81,8.84566811]
[1744568963274,7.5864,131.86,131.82,7.588]
[1744568963474,58.87734344,131.89,131.81,8.84566811]
[1744568963773,7.588,131.83,131.81,8.84566811]
[1744568963976,58.87734344,131.89,131.81,8.84566811]
[1744568964176,21.76575243,131.86,131.84,0.05038484]
[1744568964376,39.2269,131.85,131.81,2.43146811]
[1744568964778,39.2269,131.85,131.8,26.53700433]
[1744568965477,39.2269,131.85,131.81,0.05388151]
[1744568965882,0.04840899,131.86,131.81,0.05388151]
[1744568966779,7.5879,131.83,131.81,0.05388151]
[1744568967285,0.05356837,131.83,131.81,0.05388151]
[1744568967682,7.5882,131.82,131.81,0.05388151]
[1744568967978,37.21356837,131.83,131.77,103.43584514]
[1744568968687,7.5905,131.78,131.77,93.81354514]
[1744568969186,58.92820288,131.79,131.75,106.44592846]
[1744568969581,58.92820288,131.79,131.75,90.92672846]
[1744568969789,21.71734344,131.76,131.73,17.54518464]
[1744568970089,21.71734344,131.76,131.73,82.84658928]
[1744568970090,37.16,131.75,131.73,82.84658928]
[1744568970290,7.5934,131.73,131.72,105.59724588]
[1744568970490,21.71734344,131.74,131.73,0.05594137]
[1744568970782,21.71734344,131.74,131.73,4.137e-05]
[1744568970783,29.31014344,131.74,131.73,4.137e-05]
[1744568970989,36.91014344,131.74,131.73,4.137e-05]
[1744568971181,50.46118441,131.74,131.73,4.137e-05]
[1744568971589,7.5939,131.72,131.71,150.29995118]
[1744568971891,7.5939,131.72,131.71,46.42248435]
[1744568972193,7.5968,131.68,131.62,7.5997]
[1744568972385,37.16,131.67,131.62,7.5997]
[1744568972693,37.16,131.66,131.57,37.16]
[1744568972988,37.21629282,131.66,131.63,0.05821658]
[1744568973183,37.16,131.66,131.56,4.0242]
[1744568973385,37.21007629,131.66,131.63,0.05082912]
[1744568973585,106.60127187,131.64,131.56,4.0242]
[1744568973786,106.60127187,131.64,131.63,0.04951063]
[1744568974090,106.60127187,131.64,131.61,7.6]
[1744568974291,106.60127187,131.64,131.62,0.05794792]
[1744568974493,37.96741737,131.65,131.62,0.05794792]
[1744568974494,0.05476504,131.65,131.62,0.05794792]
[1744568974692,7.5981,131.65,131.6,7.6003]
[1744568974892,7.65027084,131.65,131.62,0.05158045]
[1744568975192,7.5986,131.64,131.62,0.05158045]
[1744568976493,7.5991,131.63,131.62,0.05158045]
[1744568977096,7.5988,131.64,131.62,0.05158045]
[1744568977299,0.05217084,131.65,131.62,0.05158045]
[1744568977700,7.5989,131.64,131.62,0.05158045]
[1744568977895,0.05217084,131.65,131.62,0.05158045]
[1744568978201,37.18,131.73,131.63,35.26838441]
[1744568978402,37.18,131.73,131.68,7.5958]
[1744568978601,37.18,131.73,131.66,35.26838441]
[1744568979295,0.04933276,131.71,131.68,0.05538384]
[1744568979697,0.04933276,131.71,131.7,7.5951]
[1744568980802,0.04933276,131.71,131.69,7.5957]
[1744568981007,0.04933276,131.71,131.68,0.05538384]
[1744568981704,0.04933276,131.71,131.7,7.5951]
[1744568983099,0.04933276,131.71,131.68,0.05538384]
[1744568983598,7.64403276,131.71,131.68,0.05538384]
[1744568983802,0.04933276,131.71,131.68,0.05538384]
[1744568984202,7.64393276,131.71,131.68,0.05538384]
[1744568985504,0.04933276,131.71,131.68,7.65158384]
[1744568986304,0.04933276,131.71,131.69,7.5954]
[1744568986503,0.04933276,131.71,131.68,0.05538384]
[1744568987902,0.04933276,131.71,131.68,7.65138384]
[1744568989006,7.64383276,131.71,131.68,7.65138384]
[1744568989307,7.64383276,131.71,131.68,0.05538384]
[1744568989606,0.04933276,131.71,131.68,0.05538384]
[1744568989805,0.04933276,131.71,131.69,7.5956]
[1744568990508,0.04933276,131.71,131.7,7.5951]
[1744568990905,37.08,131.75,131.68,0.05538384]
[1744568991108,44.6723,131.75,131.71,7.5941]
[1744568992109,0.04827951,131.74,131.72,0.05460565]
[1744568992499,37.08,131.78,131.72,0.05460565]
[1744568992703,37.08,131.79,131.71,1.9966]
[1744568992908,37.08,131.79,131.74,7.5925]
[1744568992909,7.5906,131.78,131.74,7.5925]
[1744568993705,7.63905838,131.77,131.75,0.05189062]
[1744568994009,0.04795838,131.77,131.75,0.05189062]
[1744568994308,7.5916,131.76,131.75,0.05189062]
[1744568995007,0.04795838,131.77,131.69,7.5948]
[1744568995008,7.593,131.73,131.69,7.5948]
[1744568995611,7.5936,131.72,131.68,9.6789]
[1744568995808,37.08,131.74,131.68,2.0835]
[1744568996012,37.08,131.74,131.65,1.9468]
[1744568996209,7.5946,131.7,131.65,1.9468]
[1744568996409,7.5946,131.7,131.68,0.05039608]
[1744568996809,7.64322078,131.7,131.68,0.05039608]
[1744568997311,7.5949,131.69,131.68,0.05039608]
[1744568997513,37.12862078,131.7,131.62,2.1286]
[1744568997812,7.5976,131.65,131.61,9.73]
[1744568998105,37.08,131.66,131.59,1.9472]
[1744568998901,0.05644652,131.64,131.61,0.05725358]
[1744568999310,0.05644652,131.64,131.62,7.5986]
[1744569000313,0.05644652,131.64,131.63,7.5984]
[1744569000514,37.1,131.72,131.63,21.67946295]
[1744569001613,0.0496651,131.69,131.66,0.04979445]
[1744569002113,0.0496651,131.69,131.68,7.5955]
[1744569004208,0.0496651,131.69,131.67,3.8862]
[1744569004405,0.0496651,131.69,131.66,0.04979445]
[1744569004913,0.0496651,131.69,131.68,7.5955]
[1744569007015,0.0496651,131.69,131.67,7.5958]
[1744569007215,0.0496651,131.69,131.66,0.04979445]
[1744569007416,0.0496651,131.69,131.67,7.5961]
[1744569007717,0.0496651,131.69,131.66,0.04979445]
[1744569008516,0.0496651,131.69,131.66,7.64599445]
[1744569009316,7.6446651,131.69,131.66,0.04979445]
[1744569010416,7.6446651,131.69,131.66,7.64639445]
[1744569011914,7.6446651,131.69,131.66,0.04979445]
[1744569012107,0.0496651,131.69,131.66,0.04979445]
[1744569012508,0.0496651,131.69,131.68,7.5955]
[1744569013314,0.0496651,131.69,131.66,0.04979445]
[1744569013516,37.1,131.68,131.66,0.04979445]
[1744569014213,37.1,131.68,131.58,78.34731239]
[1744569014214,72.34821239,131.68,131.58,5.9991]
[1744569014421,601.64,131.67,131.58,5.9991]
[1744569014721,7.5982,131.64,131.6,7.5998]
[1744569014914,37.1,131.64,131.6,7.5998]
[1744569015318,37.1,131.64,131.61,7.5994]
[1744569015520,0.05195871,131.63,131.61,0.05100395]
[1744569015817,37.1,131.67,131.61,0.05100395]
[1744569016217,37.1,131.67,131.64,7.5973]
[1744569016520,37.1,131.67,131.61,35.24821239]
[1744569016719,44.5945,131.7,131.66,7.5966]
[1744569017017,0.04931995,131.69,131.64,72.24821239]
[1744569017219,674.91489757,131.73,131.7,7.5942]
[1744569017619,7.5942,131.71,131.67,7.5957]
[1744569017917,667.32219757,131.73,131.67,7.5957]
[1744569018220,7.5952,131.69,131.65,1.9434]
[1744569018421,0.05287972,131.71,131.69,0.05115959]
[1744569018722,7.64594208,131.71,131.69,0.05659644]
[1744569019222,0.05214208,131.71,131.69,0.05659644]
[1744569020221,7.64614208,131.71,131.69,0.05659644]
[1744569020418,0.05214208,131.71,131.69,0.05659644]
[1744569021422,7.64624208,131.71,131.69,0.05659644]
[1744569022020,7.5943,131.7,131.69,0.05659644]
[1744569022520,0.05214208,131.71,131.69,0.05659644]
[1744569022722,7.64624208,131.71,131.69,0.05659644]
[1744569022916,35.30035447,131.71,131.63,1.949]
[1744569023124,7.5964,131.67,131.62,2.1148]
[1744569023421,37.0,131.7,131.63,3.19420345]
[1744569023616,638.7,131.73,131.64,3.19361464]
[1744569023819,638.7,131.73,131.65,3.19361464]
[1744569024015,638.7,131.73,131.7,7.594]
[1744569024214,0.050984,131.7,131.68,0.05690387]
[1744569024416,37.0,131.73,131.68,0.05690387]
[1744569024624,0.05409917,131.7,131.69,7.5945]
[1744569027429,0.05409917,131.7,131.68,7.65210387]
[1744569027828,0.05409917,131.7,131.68,0.05690387]
[1744569028626,44.5949,131.69,131.68,0.05690387]
[1744569028825,37.0,131.69,131.62,2.1148]
[1744569029030,7.5964,131.67,131.63,7.5981]
[1744569029633,7.5967,131.66,131.63,7.5981]
[1744569029933,7.65423296,131.66,131.64,0.04856714]
[1744569030229,0.05753296,131.66,131.64,0.04856714]
[1744569031322,37.0,131.72,131.64,0.04856714]
[1744569031522,37.0,131.75,131.65,24.90715779]
[1744569031723,7.5924,131.74,131.7,7.594]
[1744569032533,0.0511004,131.73,131.71,0.05152211]
[1744569032731,7.6438004,131.73,131.71,0.05152211]
[1744569033135,0.0511004,131.73,131.71,7.64502211]
[1744569033323,0.0511004,131.73,131.71,0.05152211]
[1744569033523,601.68,131.77,131.71,0.05152211]
[1744569033834,37.0,131.78,131.71,0.05152211]
[1744569034627,0.05745044,131.76,131.71,0.05152211]
[1744569034928,0.05745044,131.76,131.73,7.5925]
[1744569035137,0.05745044,131.76,131.71,0.05152211]
[1744569036032,0.05745044,131.76,131.73,7.5922]
[1744569036227,0.05745044,131.76,131.71,0.05152211]
[1744569036628,0.05745044,131.76,131.75,7.5914]
[1744569037941,44.5882,131.81,131.77,7.5902]
[1744569038136,37.0,131.84,131.75,2.0018]
[1744569038331,7.5872,131.83,131.78,7.5895]
[1744569038931,0.04998601,131.82,131.79,7.64723313]
[1744569039141,0.04998601,131.82,131.79,0.05823313]
[1744569040143,0.04998601,131.82,131.81,7.588]
[1744569040337,37.0,131.87,131.79,0.05823313]
[1744569040540,37.0,131.87,131.83,7.5865]
[1744569041244,44.5846,131.87,131.83,7.5865]
[1744569041443,44.5846,131.87,131.84,0.04868743]
[1744569041643,37.0,131.87,131.84,0.04868743]
[1744569042043,37.0,131.93,131.87,7.5841]
[1744569042238,7.582,131.92,131.85,2.0177]
[1744569042439,37.0,131.93,131.85,2.0177]
[1744569042744,37.0,131.93,131.87,0.05676721]
[1744569043346,37.0,131.93,131.87,7.64086721]
[1744569043541,37.0,131.93,131.87,0.05676721]
[1744569044246,7.5827,131.91,131.87,0.05676721]
[1744569044445,37.0,131.93,131.87,0.05676721]
[1744569044947,7.5826,131.91,131.87,7.64126721]
[1744569045649,7.583,131.9,131.87,0.05676721]
[1744569045846,37.0,131.93,131.87,0.05676721]
[1744569046249,7.5819,131.92,131.88,7.5838]
[1744569046850,7.5823,131.91,131.87,7.64116721]
[1744569047044,7.5823,131.91,131.87,0.05676721]
[1744569047240,37.0,131.93,131.87,0.05676721]
[1744569047744,601.44,131.95,131.87,0.05676721]
[1744569047950,7.5802,131.95,131.86,21.7152834]
[1744569048152,36.88,131.96,131.9,0.04978209]
[1744569048742,7.5813,131.93,131.9,0.04978209]
[1744569049249,7.5803,131.95,131.91,7.5819]
[1744569049750,7.5806,131.94,131.9,7.63238209]
[1744569049949,36.88,131.96,131.9,7.63238209]
[1744569049950,36.88,131.96,131.9,0.04978209]
[1744569050652,7.5808,131.94,131.9,7.63228209]
[1744569051151,7.5813,131.93,131.9,0.04978209]
[1744569051461,36.86,131.97,131.87,2.0071]
[1744569051754,36.86,131.97,131.9,0.04888919]
[1744569051951,7.5803,131.95,131.91,7.5822]
[1744569052145,7.5803,131.95,131.87,2.0071]
[1744569052350,21.7152834,132.0,131.91,0.05775713]
[1744569052547,44.438,131.99,131.94,7.58]
[1744569052752,44.438,131.99,131.94,0.05718227]
[1744569052949,36.86,131.99,131.96,7.5794]
[1744569053357,36.86,131.99,131.94,0.05718227]
[1744569053552,601.1,132.02,131.94,0.05718227]
[1744569053553,637.96,132.02,131.94,7.63748227]
[1744569053853,637.96,132.02,131.93,2.025]
[1744569054049,637.96,132.02,131.97,0.05626777]
[1744569054349,601.1,132.02,131.97,0.05626777]
[1744569054558,36.86,132.01,131.97,0.05626777]
[1744569054757,7.5782,131.98,131.97,0.05626777]
[1744569055054,36.86,132.0,131.97,0.05626777]
[1744569056157,7.5799,131.96,131.91,9.6911]
[1744569056652,36.86,131.95,131.91,2.1089]
[1744569056857,36.86,131.95,131.89,2.1137]
[1744569057062,36.86,131.96,131.89,2.1137]
[1744569057360,0.05031928,131.93,131.91,0.05579297]
[1744569060558,0.05031928,131.93,131.91,7.63759297]
[1744569060860,0.05031928,131.93,131.91,0.05579297]
[1744569061662,7.5835,131.89,131.83,364.0]
[1744569061962,36.86,131.92,131.82,4.1365]
[1744569062764,7.5832,131.9,131.85,7.5857]
[1744569062962,0.04918173,131.88,131.86,0.05467249]
[1744569063366,36.86,131.92,131.86,0.05467249]
[1744569063659,36.86,131.98,131.88,21.7152834]
[1744569063863,36.86,131.98,131.94,7.5802]
[1744569064263,36.86,131.98,131.89,41.0677]
[1744569064466,0.05708104,131.95,131.93,7.5809]
[1744569064765,0.05708104,131.95,131.92,0.05535435]
[1744569065361,7.63728104,131.95,131.92,0.05535435]
[1744569066264,7.63728104,131.95,131.92,7.63695435]
[1744569066464,0.05708104,131.95,131.92,7.63695435]
[1744569067261,7.63708104,131.95,131.92,7.63695435]
[1744569067462,0.05708104,131.95,131.92,0.05535435]
[1744569067763,36.86,131.94,131.92,0.05535435]
[1744569068065,44.4408,131.94,131.92,0.05535435]
[1744569068763,7.5811,131.93,131.92,0.05535435]
[1744569068969,36.86,131.94,131.83,36.86]
[1744569069266,21.7152834,131.93,131.81,6.2029]
[1744569069565,7.5834,131.89,131.85,7.5854]
[1744569069760,44.4434,131.89,131.85,7.5854]
[1744569070167,0.05510276,131.88,131.86,0.04874902]
[1744569071065,7.63930276,131.88,131.86,0.04874902]
[1744569071265,21.7152834,131.87,131.74,385.7152834]
[1744569071470,21.7152834,131.87,131.75,4.1054]
[1744569071767,21.7152834,131.84,131.77,7.5899]
[1744569071977,36.86,131.83,131.75,4.1054]
[1744569072272,36.86,131.83,131.76,1.9956]
[1744569072571,36.86,131.86,131.78,0.04894003]
[1744569072769,44.4446,131.87,131.82,7.587]